{"text_format":"1","workbook":"xlsx","n_sheets":5,"sheets":["NOMBRE","BM18","BM18A","Control","MACROS"],"not_rendered":{"charts":0,"images":1,"macros":1,"external_links":0,"defined_names":2,"comments":0,"pivot_tables":0},"unopened":[],"bounds":{"document_bytes":16777216,"sheet_cells":100000,"rows_first":2000,"rows_last":500,"rows_between":2000,"halvings":0,"cell_chars":16384,"cell_head_chars":4096},"cells_cut":0,"cells_raw":0,"read":"whole","date_system":"1900"}

{"sheet":"NOMBRE","index":0,"n_rows":42,"n_cols":33,"rows_kept":42,"cut":false,"hidden":false,"merged":[[1,8,1,13],[2,8,2,13],[13,0,13,1],[16,1,18,1],[0,0,0,1],[0,2,0,6],[8,0,8,1]]}
["DATOS DEL ESTABLECIMIENTO",null,"CÓDIGOS"]
["NOMBRE DE COMUNA",null,null,null,null,null,null,null,{"$f":"IF(OR(NOMBRE!C2=\"\",NOMBRE!D2=\"\",NOMBRE!E2=\"\",NOMBRE!F2=\"\",NOMBRE!G2=\"\"),\"Falta Cód. Com.\",\"\")","v":"Falta Cód. Com."},null,null,null,null,null,null,null,null,null,null,null,null,null,{"$f":"IF(OR(C2=\"\",D2=\"\",E2=\"\",F2=\"\",G2=\"\"),1,0)","v":1},null,null,null,null,null,null,null,null,null,{"$f":"IF(I2>\"\",1,0)","v":1}]
["NOMBRE ESTABLECIMIENTO/ESTRATEGIA",null,null,null,null,null,null,null,{"$f":"IF(OR(NOMBRE!C3=\"\",NOMBRE!D3=\"\",NOMBRE!E3=\"\",NOMBRE!F3=\"\",NOMBRE!G3=\"\",NOMBRE!H3=\"\"),\"Falta Cód. Est.\",\"\")","v":"Falta Cód. Est."},null,null,null,null,null,null,null,null,null,null,null,null,null,{"$f":"IF(OR(C3=\"\",D3=\"\",E3=\"\",F3=\"\",G3=\"\",H3=\"\"),1,0)","v":1},null,null,null,null,null,null,null,null,null,{"$f":"IF(I3>\"\",1,0)","v":1}]
[]
[]
["MES:",null,{"$f":"IF(X10<>\"\",IF(LEN(X10)<2,\"0\",LEFT(X10,1)),\"\")","v":""},{"$f":"IF(X10<>\"\",RIGHT(X10,1),\"\")","v":""},null,null,null,null,{"$f":"IF(OR(NOMBRE!C6=\"\",NOMBRE!D6=\"\"),\"Falta Cód. Mes.\",\"\")","v":"Falta Cód. Mes."},null,null,null,null,null,null,null,null,null,null,null,null,null,{"$f":"IF(OR(C6=\"\",D6=\"\"),1,0)","v":1},null,null,null,null,null,null,null,null,null,{"$f":"IF(I6>\"\",1,0)","v":1}]
["AÑO:",2026,null,null,null,null,null,null,null,null,null,null,null,null,null,null,null,null,null,null,null,null,null,null,null,null,null,null,null,null,null,null,{"$f":"SUM(AG2:AG6)","v":3}]
[null,null,null,null,null,null," "]
["Versión 1.1 Febrero 2026"]
[null,null,null,null,null,null,null,null,null,null,null,null,null,null,null,null,null,null,null,null,null,null,{"$f":"B6","v":0},{"$f":"IFERROR(VLOOKUP(W10,$W$11:$X$22,2,FALSE),\"\")","v":""}]
["Director/a Servicio de Salud o Director/a Establecimiento",null,null,null,null,null,null,null,null,null,null,null,null,null,null,null,null,null,null,null,null,null,"ENERO",1,null,null,"ENERO","Establecimiento de Mayor Complejidad (EMAYC)","SERVICIO DE SALUD"]
["Jefe/a de Estadísticas",null,null,null,null,null,null,null,null,null,null,null,null,null,null,null,null,null,null,null,null,null,"FEBRERO",2,null,null,"FEBRERO","Establecimiento de Mediana Complejidad (EMEDC)","MUNICIPAL"]
[null,null,null,null,null,null,null,null,null,null,null,null,null,null,null,null,null,null,null,null,null,null,"MARZO",3,null,null,"MARZO","Establecimiento de Menor Complejidad (EMENC)","OTRA INSTITUCION (Delegado)"]
["MINSAL - DEIS",null,null,null,null,null,null,null,null,null,null,null,null,null,null,null,null,null,null,null,null,null,"ABRIL",4,null,null,"ABRIL","Centros de Diagnóstico Terapeutico (CDT)"]
[null,null,null,null,null,null,null,null,null,null,null,null,null,null,null,null,null,null,null,null,null,null,"MAYO",5,null,null,"MAYO","Centro de Referencia de Salud (CRS)"]
[null,null,null,null,null,null,null,null,null,null,null,null,null,null,null,null,null,null,null,null,null,null,"JUNIO",6,null,null,"JUNIO","Centro de Salud Familiar"]
[null,"SERIE BM ESTABLECIMIENTOS AREA MUNICIPAL",null,null,null,null,null,null,null,null,null,null,null,null,null,null,null,null,null,null,null,null,"JULIO",7,null,null,"JULIO","Consultorio General Urbano (CGU)"]
[null,null,null,null,null,null,null,null,null,null,null,null,null,null,null,null,null,null,null,null,null,null,"AGOSTO",8,null,null,"AGOSTO","Consultorio General Urbano (CGU) - CESFAM"]
[null,null,null,null,null,null,null,null,null,null,null,null,null,null,null,null,null,null,null,null,null,null,"SEPTIEMBRE",9,null,null,"SEPTIEMBRE","Consultorio General Urbano(CGU) con SAPU/SUR/SAR"]
[null,null,null,null,null,null,null,null,null,null,null,null,null,null,null,null,null,null,null,null,null,null,"OCTUBRE",10,null,null,"OCTUBRE","Consultorio General Urbano (CGU) - CESFAM con SAPU/SAR"]
[null,null,null,null,null,null,null,null,null,null,null,null,null,null,null,null,null,null,null,null,null,null,"NOVIEMBRE",11,null,null,"NOVIEMBRE","Consultorio General Rural (CGR)"]
[null,null,null,null,null,null,null,null,null,null,null,null,null,null,null,null,null,null,null,null,null,null,"DICIEMBRE",12,null,null,"DICIEMBRE","Consultorio General Rural (CGR) - CESFAM"]
[null,null,null,null,null,null,null,null,null,null,null,null,null,null,null,null,null,null,null,null,null,null,null,null,null,null,null,"Consultorio General Rural (CGR) con SAPU/SAR/SUR"]
[null,null,null,null,null,null,null,null,null,null,null,null,null,null,null,null,null,null,null,null,null,"Filtro",101300,{"$f":"IF(W24<>\"\",CONCATENATE(\"{\"\"EstablecimientoCodigo\"\":\"\"\",W24,\"\"\"}\"),\"\")","v":"{\"EstablecimientoCodigo\":\"101300\"}"},null,null,null,"Consultorio General Rural (CGR) - CESFAM con SAPU/SAR/SUR"]
[null,null,null,null,null,null,null,null,null,null,null,null,null,null,null,null,null,null,null,null,null,"URL + Encoding","https://datos.gob.cl/api/3/action/datastore_search?resource_id=2c44d782-3365-44e3-aefb-2c8b8363a1bc&limit=1&filters=",{"$f":"_xlfn.ENCODEURL(X24)","v":"%7B%22EstablecimientoCodigo%22%3A%22101300%22%7D"},null,null,null,"Posta de Salud Rural (PSR)"]
[null,null,null,null,null,null,null,null,null,null,null,null,null,null,null,null,null,null,null,null,null,"ServicioWeb",{"$f":"IF($W$24<>\"\",_xlfn.WEBSERVICE(CONCATENATE(W25,X25)),\"\")","v":"{\"help\": \"https://datos.gob.cl/api/3/action/help_show?name=datastore_search\", \"success\": true, \"result\": {\"filters\": {\"EstablecimientoCodigo\": \"101300\"}, \"include_total\": true, \"limit\": 1, \"records_format\": \"objects\", \"resource_id\": \"2c44d782-3365-44e3-aefb-2c8b8363a1bc\", \"total_estimation_threshold\": null, \"records\": [{\"_id\":4075,\"EstablecimientoCodigo\":\"101300\",\"EstablecimientoGlosa\":\"Centro de Salud Familiar Víctor Bertín Soto\",\"EstablecimientoCodigoAntiguo\":\"01-300\",\"EstablecimientoCodigoMadreAntiguo\":null,\"EstablecimientoCodigoMadreNuevo\":null,\"RegionCodigo\":\"15\",\"RegionGlosa\":\"Región de Arica Parinacota\",\"SeremiSaludCodigo_ServicioDeSaludCodigo\":\"1\",\"SeremiSaludGlosa_ServicioDeSaludGlosa\":\"Servicio de Salud Arica y Parinacota\",\"TipoPertenenciaEstabGlosa\":\"Perteneciente al Sistema Nacional de Servicios de Salud\",\"TipoEstablecimientoGlosa\":\"Centro de Salud Familiar (CESFAM)\",\"AmbitoFuncionamiento\":\"Establecimiento de Salud\",\"Certificacion\":\"Centro de Salud Familiar\",\"DependenciaAdministrativa\":\"Municipal\",\"NivelAtencionEstabglosa\":\"Primario\",\"ComunaCodigo\":\"15101\",\"ComunaGlosa\":\"Arica\",\"TipoViaGlosa\":\"Calle\",\"Numero\":\"1635\",\"NombreVia\":\"Belén\",\"TelefonoMovil_TelefonoFijo\":\"800500103\",\"FechaInicioFuncionamientoEstab\":null,\"TieneServicioUrgencia\":\"NO\",\"TipoUrgencia\":\"No Aplica\",\"ClasificacionTipoSapu\":\"No Aplica\",\"Latitud\":\"-18.47684\",\"Longitud\":\"-70.29603\",\"TipoSistemaSaludGlosa\":\"Público\",\"EstadoFuncionamiento\":\"Vigente en Operación Habitual\",\"NivelComplejidadEstabGlosa\":\"Baja Complejidad\",\"TipoAtencionEstabGlosa\":\"Atención Abierta-Ambulatoria\",\"FechaIncorporacion\":null}], \"fields\": [{\"id\": \"_id\", \"type\": \"int\"}, {\"id\": \"EstablecimientoCodigo\", \"type\": \"text\"}, {\"id\": \"EstablecimientoGlosa\", \"type\": \"text\"}, {\"id\": \"EstablecimientoCodigoAntiguo\", \"type\": \"text\"}, {\"id\": \"EstablecimientoCodigoMadreAntiguo\", \"type\": \"text\"}, {\"id\": \"EstablecimientoCodigoMadreNuevo\", \"type\": \"text\"}, {\"id\": \"RegionCodigo\", \"type\": \"text\"}, {\"id\": \"RegionGlosa\", \"type\": \"text\"}, {\"id\": \"SeremiSaludCodigo_ServicioDeSaludCodigo\", \"type\": \"text\"}, {\"id\": \"SeremiSaludGlosa_ServicioDeSaludGlosa\", \"type\": \"text\"}, {\"id\": \"TipoPertenenciaEstabGlosa\", \"type\": \"text\"}, {\"id\": \"TipoEstablecimientoGlosa\", \"type\": \"text\"}, {\"id\": \"AmbitoFuncionamiento\", \"type\": \"text\"}, {\"id\": \"Certificacion\", \"type\": \"text\"}, {\"id\": \"DependenciaAdministrativa\", \"type\": \"text\"}, {\"id\": \"NivelAtencionEstabglosa\", \"type\": \"text\"}, {\"id\": \"ComunaCodigo\", \"type\": \"text\"}, {\"id\": \"ComunaGlosa\", \"type\": \"text\"}, {\"id\": \"TipoViaGlosa\", \"type\": \"text\"}, {\"id\": \"Numero\", \"type\": \"text\"}, {\"id\": \"NombreVia\", \"type\": \"text\"}, {\"id\": \"TelefonoMovil_TelefonoFijo\", \"type\": \"text\"}, {\"id\": \"FechaInicioFuncionamientoEstab\", \"type\": \"text\"}, {\"id\": \"TieneServicioUrgencia\", \"type\": \"text\"}, {\"id\": \"TipoUrgencia\", \"type\": \"text\"}, {\"id\": \"ClasificacionTipoSapu\", \"type\": \"text\"}, {\"id\": \"Latitud\", \"type\": \"text\"}, {\"id\": \"Longitud\", \"type\": \"text\"}, {\"id\": \"TipoSistemaSaludGlosa\", \"type\": \"text\"}, {\"id\": \"EstadoFuncionamiento\", \"type\": \"text\"}, {\"id\": \"NivelComplejidadEstabGlosa\", \"type\": \"text\"}, {\"id\": \"TipoAtencionEstabGlosa\", \"type\": \"text\"}, {\"id\": \"FechaIncorporacion\", \"type\": \"text\"}], \"_links\": {\"start\": \"/api/3/action/datastore_search?resource_id=2c44d782-3365-44e3-aefb-2c8b8363a1bc&limit=1&filters=%7B%22EstablecimientoCodigo%22%3A%22101300%22%7D\", \"next\": \"/api/3/action/datastore_search?resource_id=2c44d782-3365-44e3-aefb-2c8b8363a1bc&limit=1&filters=%7B%22EstablecimientoCodigo%22%3A%22101300%22%7D&offset=1\"}, \"total\": 1, \"total_was_estimated\": false}}"},null,null,null,null,"Centro Comunitario de Salud Familiar (CECOF)"]
[null,null,null,null,null,null,null,null,null,null,null,null,null,null,null,null,null,null,null,null,null,"Hay Registros",{"$f":"IFERROR(IF($W$26<>\"\",MID($W$26,FIND(\"\"\"total\"\":\",$W$26)+9,1),\"0\"),\"0\")","v":"1"},null,null,null,null,"Consultorio de Salud Mental (COSAM)"]
[null,null,null,null,null,null,null,null,null,null,null,null,null,null,null,null,null,null,null,null,null,"Establecimiento",{"$f":"IF(AND($W$26<>\"\",$W$27=\"1\"),MID($W$26,FIND(\"EstablecimientoGlosa\",$W$26)+23,(FIND(\"EstablecimientoCodigoAntiguo\",$W$26)-3)-(FIND(\"EstablecimientoGlosa\",$W$26)+23)),\"\")","v":"Centro de Salud Familiar Víctor Bertín Soto"},null,null,null,null,"Programa de Reparación y Atención Integral de Salud (PRAIS)"]
[null,null,null,null,null,null,null,null,null,null,null,null,null,null,null,null,null,null,null,null,null,"Comuna",{"$f":"IF(AND($W$26<>\"\",$W$27=\"1\"),MID($W$26,FIND(\"ComunaCodigo\",$W$26)+15,(FIND(\"ComunaGlosa\",$W$26)-3)-(FIND(\"ComunaCodigo\",$W$26)+15)),\"\")","v":"15101"},null,null,null,null,"Centro de Atención Funcionarios (CAF)"]
[null,null,null,null,null,null,null,null,null,null,null,null,null,null,null,null,null,null,null,null,null,"Comuna Glosa",{"$f":"IF(AND($W$26<>\"\",$W$27=\"1\"),MID($W$26,FIND(\"ComunaGlosa\",$W$26)+14,(FIND(\"TipoVia\",$W$26)-3)-(FIND(\"ComunaGlosa\",$W$26)+14)),\"\")","v":"Arica"},null,null,null,null,"Unidad de Salud de Funcionarios (USF)"]
[null,null,null,null,null,null,null,null,null,null,null,null,null,null,null,null,null,null,null,null,null,"Comuna Dividida por Celdas en sgte linea:",null,null,null,null,null,"ClÍnica Dental Móvil (CDM)"]
[null,null,null,null,null,null,null,null,null,null,null,null,null,null,null,null,null,null,null,null,null,null,null,null,null,null,null,"Dirección Servicio de Salud (DSS)"]
[null,null,null,null,null,null,null,null,null,null,null,null,null,null,null,null,null,null,null,null,null,{"$f":"IF($W$29<> \"\",IF(LEN($W$29)>4,LEFT($W$29,1),\"0\"),\"\")","v":"1"},{"$f":"IF($W$29<>\"\",LEFT(RIGHT($W$29,4),1),\"\")","v":"5"},{"$f":"IF($W$29<>\"\",LEFT(RIGHT($W$29,3),1),\"\")","v":"1"},{"$f":"IF($W$29<>\"\",LEFT(RIGHT($W$29,2),1),\"\")","v":"0"},{"$f":"IF($W$29<>\"\",RIGHT($W$29,1),\"\")","v":"1"},null,"Servicio de Atención Primaria de Urgencia (SAPU)"]
[null,null,null,null,null,null,null,null,null,null,null,null,null,null,null,null,null,null,null,null,null,null,null,null,null,null,null,"Servicio de Urgencia Rural (SUR)"]
[null,null,null,null,null,null,null,null,null,null,null,null,null,null,null,null,null,null,null,null,null,null,null,null,null,null,null,"Servicio de Alta Resolución SAR"]
[null,null,null,null,null,null,null,null,null,null,null,null,null,null,null,null,null,null,null,null,null,null,null,null,null,null,null,"Laboratorio Clínico o Dental"]
[null,null,null,null,null,null,null,null,null,null,null,null,null,null,null,null,null,null,null,null,null,null,null,null,null,null,null,"Servicio de Atención Primaria de Urgencia Dental (SAPUDENT)"]
[null,null,null,null,null,null,null,null,null,null,null,null,null,null,null,null,null,null,null,null,null,null,null,null,null,null,null,"Centro de Rehabilitación (CR)"]
[null,null,null,null,null,null,null,null,null,null,null,null,null,null,null,null,null,null,null,null,null,null,null,null,null,null,null,"Hospital de Campaña"]
[null,null,null,null,null,null,null,null,null,null,null,null,null,null,null,null,null,null,null,null,null,null,null,null,null,null,null,"Centro Oncologico"]
[null,null,null,null,null,null,null,null,null,null,null,null,null,null,null,null,null,null,null,null,null,null,null,null,null,null,null,"SAMU"]
[null,null,null,null,null,null,null,null,null,null,null,null,null,null,null,null,null,null,null,null,null,null,null,null,null,null,null,"Centro de salud Urbano (CSU)"]

{"sheet":"BM18","index":1,"n_rows":96,"n_cols":6,"rows_kept":96,"cut":false,"hidden":false,"merged":[[39,3,40,3],[39,1,40,1],[59,0,61,0],[58,0,58,1],[54,1,55,1],[39,0,40,0],[54,0,55,0],[18,1,18,2],[17,1,17,2],[31,1,32,1],[19,1,19,2],[21,1,21,2],[22,1,22,2],[23,1,24,1],[25,1,26,1],[27,1,28,1],[29,1,30,1],[7,0,8,5],[23,0,36,0],[10,5,11,5],[10,4,11,4],[39,2,40,2],[10,3,11,3],[12,1,12,2],[20,1,20,2],[9,0,9,2],[16,1,16,2],[10,0,11,2],[33,1,34,1],[35,1,36,1],[13,1,13,2],[14,1,14,2],[15,1,15,2]]}
["SERVICIO DE SALUD "]
[{"$f":"CONCATENATE(\"COMUNA: \",NOMBRE!B2,\"  \",\"( \",NOMBRE!C2,NOMBRE!D2,NOMBRE!E2,NOMBRE!F2,NOMBRE!G2,\" )\")","v":"COMUNA:   (  )"}]
[{"$f":"CONCATENATE(\"ESTABLECIMIENTO/ESTRATEGIA: \",NOMBRE!B3,\"  \",\"( \",NOMBRE!C3,NOMBRE!D3,NOMBRE!E3,NOMBRE!F3,NOMBRE!G3,NOMBRE!H3,\" )\")","v":"ESTABLECIMIENTO/ESTRATEGIA:   (  )"}]
[{"$f":"CONCATENATE(\"MES: \",NOMBRE!B6,\"  \",\"( \",NOMBRE!C6,NOMBRE!D6,\" )\")","v":"MES:   (  )"}]
[{"$f":"CONCATENATE(\"AÑO: \",NOMBRE!B7)","v":"AÑO: 2026"}]
[]
[]
["REM-B18.   ACTIVIDADES DE APOYO DIAGNOSTICO Y TERAPEUTICO\n     (USO EXCLUSIVO DE ESTABLECIMIENTOS MUNICIPALES)"]
[]
["SECCIÓN A: EXÁMENES DE DIAGNOSTICO"]
["EXÁMENES",null,null,"TOTAL","SAPU/SAR/SUR","Resto Establecimientos APS"]
[null,null,null,null,"Total","Total"]
["TOTAL EXÁMENES LABORATORIO",null,null,{"$f":"SUM(E13:F13)","v":0},{"$f":"SUM(E14:E20)","v":0},{"$f":"SUM(F14:F20)","v":0}]
["I","HEMATOLÓGICOS",null,{"$f":"SUM(E14:F14)","v":0},{"$f":"BM18A!D20","v":0},{"$f":"BM18A!E20","v":0}]
["II","BIOQUÍMICOS",null,{"$f":"SUM(E15:F15)","v":0},{"$f":"BM18A!D43","v":0},{"$f":"BM18A!E43","v":0}]
["III","HORMONALES",null,0,{"$f":"BM18A!D49","v":0},{"$f":"BM18A!E49","v":0}]
["V","INMUNOLÓGICOS",null,0,{"$f":"BM18A!D54","v":0},{"$f":"BM18A!E54","v":0}]
["VI","MICROBIOLÓGICOS",null,0,{"$f":"BM18A!D73","v":0},{"$f":"BM18A!E73","v":0}]
["VIII","EX.  DE DEPOSICIONES EXUDADOS. SECREC. Y OTROS LIQ.  ",null,{"$f":"SUM(E19:F19)","v":0},{"$f":"BM18A!D78","v":0},{"$f":"BM18A!E78","v":0}]
["IX","ORINA",null,0,{"$f":"BM18A!D88","v":0},{"$f":"BM18A!E88","v":0}]
["TOTAL EXÁMENES IMAGENOLOGIA",null,null,{"$f":"SUM(E21:F21)","v":0},{"$f":"SUM(E22+E23)","v":0},{"$f":"SUM(F22+F23)","v":0}]
["a)","EX. RADIOLÓGICOS SIMPLES",null,{"$f":"SUM(E22:F22)","v":0},{"$f":"SUM(BM18A!D92:D113)","v":0},{"$f":"SUM(BM18A!E92:E113)","v":0}]
[null,"ECOGRAFÍAS OBSTÉTRICAS Y GINECOLÓGICAS",null,{"$f":"SUM(E23:F23)","v":0},{"$f":"SUM(BM18A!D114:D118)","v":0},{"$f":"SUM(BM18A!E114:E118)","v":0}]
[null,"Ecografías Obstétricas Primer Trimestre (<11 semanas)","Médico/a",{"$f":"SUM(F24)","v":0}]
[null,null,"Matrón/a",{"$f":"SUM(F25)","v":0}]
[null,"Ecografias Obstétricas Primer Trimestre (11 - 14 semanas)","Médico/a",{"$f":"SUM(F26)","v":0}]
[null,null,"Matrón/a",0]
[null,"Ecografias Obstétricas Segundo Trimestre (22 - 24 semanas)","Médico/a",0]
[null,null,"Matrón/a",0]
[null,"Ecografias Obstétricas Tercer Trimestre (30 - 34 semanas)","Médico/a",0]
[null,null,"Matrón/a",0]
[null,"Total Ecografías Obstétricas por profesional","Médico/a",{"$f":"SUM(D24+D26+D28+D30)","v":0}]
[null,null,"Matrón/a",{"$f":"SUM(D25+D27+D29+D31)","v":0}]
[null,"Ecografía de seguimiento DIU (Regulación de la Fertilidad)","Médico/a",{"$f":"SUM(F34)","v":0}]
[null,null,"Matrón/a",{"$f":"SUM(F35)","v":0}]
[null,"Ecografía Transvaginal (control de Climaterio y Ginecológico)","Médico/a",{"$f":"SUM(F36)","v":0}]
[null,null,"Matrón/a",{"$f":"SUM(F37)","v":0}]
[]
["SECCIÓN B:  PROCEDIMIENTO E INTERVENCIONES QUIRÚRGICAS DE APOYO CLÍNICO Y TERAPÉUTICO"]
["PROCEDIMIENTOS","TOTAL","SAPU/SAR/SUR","Resto Establecimientos APS"]
[null,null,"Total","Total"]
["PROC. DE OTORRINOLARINGOLOGÍA ",{"$f":"SUM(C42:D42)","v":0},{"$f":"BM18A!D128","v":0},{"$f":"BM18A!E128","v":0}]
["PROC. DE NEUMOLOGÍA",0,{"$f":"BM18A!D158","v":0},{"$f":"BM18A!E158","v":0}]
["PROC. DE DERMATOLOGÍA",0,{"$f":"BM18A!D131","v":0},{"$f":"BM18A!E131","v":0}]
["INTERVENCIONES QUIRÚRGICAS MENORES (SUB-GRUPO TEGUMENTOS)",0,{"$f":"SUM(BM18A!D132:D139)","v":0},{"$f":"SUM(BM18A!E132:E139)","v":0}]
["PROC. DE CARDIOLOGÍA",0,{"$f":"BM18A!D148","v":0},{"$f":"BM18A!E148","v":0}]
["PROC. DE GASTROENTEROLOGÍA",0,{"$f":"BM18A!D164","v":0},{"$f":"BM18A!E164","v":0}]
["PROC. DE UROLOGÍA",0,{"$f":"BM18A!D169","v":0},{"$f":"BM18A!E169","v":0}]
["PROC. ORTOPEDIA Y TRAUMATOLOGÍA",0,{"$f":"BM18A!D186","v":0}]
["PROC. GINECOLOGÍA",0,{"$f":"BM18A!D177","v":0},{"$f":"BM18A!E177","v":0}]
["MISCELÁNEOS",0,{"$f":"BM18A!D206","v":0},{"$f":"BM18A!E206","v":0}]
["TOTAL",{"$f":"SUM(B42:B51)","v":0},{"$f":"SUM(C42:C51)","v":0},{"$f":"SUM(D42:D51)","v":0}]
[]
["SECCIÓN C: PRESCRIPCIONES ADMINISTRADAS EN URGENCIA "]
["ATENCIÓN","TOTAL"]
[]
["URGENCIA SAPU/SAR/SUR"]
["SECCIÓN D: OTROS TRASLADOS DE PACIENTES"]
["TIPO DE ACCION",null,"TOTAL        ","POR COMPRA \nDE SERVICIO"]
["TRASLADOS NO DE URGENCIA","AMBULANCIA"]
[null,"MARÍTIMO"]
[null,"AÉREO"]
[]
[]
[]
[]
[]
[]
[]
[]
[]
[]
[]
[]
[]
[]
[]
[]
[]
[]
[]
[]
[]
[]
[]
[]
[]
[]
[]
[]
[]
[]
[]
[]
[]
[{"$f":"SUM(D13:D37,B42:B52,B57,C60:C62)","v":0}]

{"sheet":"BM18A","index":2,"n_rows":206,"n_cols":6,"rows_kept":206,"cut":false,"hidden":false,"merged":[[72,0,72,1],[77,0,77,1],[87,0,87,1],[88,0,88,1],[74,0,74,1],[79,0,79,1],[48,0,48,1],[50,2,50,5],[53,0,53,1],[55,2,55,5],[50,0,50,1],[55,0,55,1],[5,0,5,2],[19,0,19,1],[44,0,44,1],[21,0,21,1],[21,2,21,5],[9,5,10,5],[9,2,10,2],[11,0,11,1],[42,0,42,1],[9,0,10,0],[9,1,10,1],[9,3,10,3],[9,4,10,4],[6,0,6,5],[44,2,44,5],[90,2,90,5],[120,3,121,3],[120,2,121,2],[120,0,121,0],[157,0,157,1],[149,0,149,1],[120,1,121,1],[120,4,121,4],[129,0,129,1],[127,0,127,1],[122,0,122,1],[141,0,141,1],[139,0,139,1],[90,0,90,1],[205,0,205,1],[163,0,163,1],[165,0,165,1],[185,0,185,1],[187,0,187,1],[178,0,178,1],[170,0,170,1],[168,0,168,1],[176,0,176,1],[187,2,187,5],[186,0,186,5],[178,2,178,5],[120,5,121,5],[119,0,119,5],[129,2,129,5],[141,2,141,5],[147,0,147,1],[159,0,159,1],[148,1,148,5],[159,2,159,5],[165,2,165,5],[149,2,149,5],[169,0,169,5]]}
["SERVICIO DE SALUD "]
[{"$f":"CONCATENATE(\"COMUNA: \",NOMBRE!B2,\"  \",\"( \",NOMBRE!C2,NOMBRE!D2,NOMBRE!E2,NOMBRE!F2,NOMBRE!G2,\" )\")","v":"COMUNA:   (  )"}]
[{"$f":"CONCATENATE(\"ESTABLECIMIENTO/ESTRATEGIA: \",NOMBRE!B3,\"  \",\"( \",NOMBRE!C3,NOMBRE!D3,NOMBRE!E3,NOMBRE!F3,NOMBRE!G3,NOMBRE!H3,\" )\")","v":"ESTABLECIMIENTO/ESTRATEGIA:   (  )"}]
[{"$f":"CONCATENATE(\"MES: \",NOMBRE!B6,\"  \",\"( \",NOMBRE!C6,NOMBRE!D6,\" )\")","v":"MES:   (  )"}]
[{"$f":"CONCATENATE(\"AÑO: \",NOMBRE!B7)","v":"AÑO: 2026"}]
[]
["REM-18A  -  LIBRO DE PRESTACIONES DE APOYO DIAGNOSTICO y TERAPÉUTICO\n(USO EXCLUSIVO DE ESTABLECIMIENTOS MUNICIPALES)"]
[]
["SECCIÓN A: EXÁMENES DE DIAGNOSTICO"]
["CÓDIGOS","EXÁMENES","TOTAL","SAPU/SAR/SUR","Resto Establecimientos APS","Compra de Servicios"]
[]
["SANGRE HEMATOLOGÍA"]
["0301036","Hematocrito (proc. aut.)",{"$f":"SUM(D13:E13)","v":0}]
["0301041","Hemoglobina glicada A1c",0]
["0301045","Hemograma (incluye recuentos de leucocitos, eritrocitos, plaquetas, hemoglobina, hematocrito, fórmula leucocitaria, características de los elementos figurados y velocidad de eritrosedimentación)",0]
["0301065","Recuento de leucocitos, absoluto (proc. aut.)",0]
["0301067","Recuento de plaquetas (absoluto)",0]
["0301059","Tiempo de protrombina (incluye INR, Razón Internacional Normalizada)",{"$f":"SUM(D18:E18)","v":0}]
["0301086","Velocidad de eritrosedimentación (proc. aut.)",0]
["TOTAL",null,{"$f":"SUM(C13:C19)","v":0},{"$f":"SUM(D13:D19)","v":0},{"$f":"SUM(E13:E19)","v":0},{"$f":"SUM(F13:F19)","v":0}]
[]
["SANGRE BIOQUÍMICO"]
["0302005","Ácido úrico, en sangre",{"$f":"SUM(D23:E23)","v":0}]
["0302013","Bilirrubina total y conjugada",0]
["0302067","Colesterol total (proc. aut.)",0]
["0302068","Colesterol HDL (proc. aut.)",0]
["0302023","Creatinina en sangre",0]
["0302024","Clearance de creatinina (proc.aut.)",0]
["0302032","Electrolitos plasmáticos (sodio, potasio, cloro) c/u",0]
["0302034","Perfil lipídico (incluye mediciones de colesterol total, HDL-colesterol y triglicéridos con estimaciones por fórmula de LDL-colesterol, VLDL-colesterol y colesterol no-HDL)",0]
["0302035","Fármacos y/o drogas; niveles plasmáticos de (alcohol, anorexígenos, antiarrítmicos, antibióticos, antidepresivos, antiepilépticos, antihistamínicos, antiinflamatorios y analgésicos, estimulantes respiratorios, tranquilizantes mayores y menores, etc.) c/u",0]
["0302040","Fosfatasas alcalinas totales",0]
["0302047","Glucosa en sangre",0]
["0302048","Glucosa, Prueba de Tolerancia a la Glucosa Oral (PTGO), (dos determinaciones)",0]
["0302057","Nitrógeno ureico y/o úrea en sangre",0]
["0302075","Perfil bioquímico (determinación automatizada de 12 parámetros)",0]
["0302076","Perfil Hepático (incluye tiempo de protrombina, bilirrubina total y conjugada, fosfatasas alcalinas totales, GGT, transaminasas GOT/AST y GPT/ALT)",0]
["0302063","Transaminasas, oxalacética (GOT/AST), Pirúvica (GPT/ALT), c/u",{"$f":"SUM(D38:E38)","v":0}]
["0302064","Triglicéridos en sangre (proc.aut.)",0]
["0302100","Proteínas totales en sangre",{"$f":"SUM(D40:E40)","v":0}]
["0302077","Vitamina B12 por inmunoensayo",0]
["0302101","Albúminas en sangre",0]
["TOTAL",null,{"$f":"SUM(C23:C42)","v":0},{"$f":"SUM(D23:D42)","v":0},{"$f":"SUM(E23:E42)","v":0},{"$f":"SUM(F23:F42)","v":0}]
[]
[" EXÁMENES HORMONALES"]
["0303024","Tiroestimulante (TSH), hormona (adulto, niño o R.N.)                            ",{"$f":"SUM(D46:E46)","v":0}]
["0303026","Tiroxina libre (T4L)                                                                       ",0]
["0303027","Tiroxina o tetrayodotironina (T4)                                               ",0]
["TOTAL",null,{"$f":"SUM(C46:C48)","v":0},{"$f":"SUM(D46:D48)","v":0},{"$f":"SUM(E46:E48)","v":0},{"$f":"SUM(F46:F48)","v":0}]
[]
["INMUNOLÓGICOS"]
["0305019","Factor reumatoídeo por técnica de látex u otras similares",{"$f":"SUM(D52:E52)","v":0}]
["0305020","Factor reumatoídeo por técnica Scat, Waaler Rose, nefelométricas y/o turbidimétricas",0]
["TOTAL",null,{"$f":"SUM(C52:C53)","v":0},{"$f":"SUM(D52:D53)","v":0},{"$f":"SUM(E52:E53)","v":0},{"$f":"SUM(F52:F53)","v":0}]
[]
["MICROBIOLÓGICOS"]
["0306002","Baciloscopia Ziehl-Neelsen, c/u",{"$f":"SUM(D57:E57)","v":0}]
["0306004","Examen directo al fresco, c/s tinción (incluye trichomonas)",0]
["0306005","Tinción de Gram",0]
["0306007","Coprocultivo, c/u",0]
["0306011","Urocultivo, recuento de colonias y antibiograma (cualquier técnica)",0]
["0306016","Neisseria gonorrhoeae (gonococo)",0]
["0306026","Antibiograma Corriente (mínimo 10 fármacos) (en caso de urocultivo no corresponde su cobro; incluido en el valor 03-06-011)",0]
["0306038","R.P.R.",0]
["0306042","V.D.R.L.",0]
["0306051","Graham, examen de (incluye diagnóstico de gusanos macroscópicos y examen microscópico de 5 muestras separadas)",0]
["0306052","Estudio de gusanos macroscópicos",0]
["0306048","Coproparasitológico seriado simple (incluye diagnóstico de gusanos macroscópicos y examen microscópico por concentración de tres muestras separadas método Telemann ) (proc. aut.)",0]
["0306059","Coproparasitológico seriado simple (incluye diagnóstico de gusanos macroscópicos y examen microscópico por concentración de tres muestras separadas método PAFS (proc. aut.)",0]
["0306169","Anticuerpos virales, determ. de H.I.V.",0]
["0306081","Virus hepatitis C, anticuerpos de (anti HCV)",0]
["0306112","VIH, anticuerpos y antígenos virales, determ. de H.I.V. ",{"$f":"SUM(D72:E72)","v":0}]
["TOTAL",null,{"$f":"SUM(C57:C72)","v":0},{"$f":"SUM(D57:D72)","v":0},{"$f":"SUM(E57:E72)","v":0},{"$f":"SUM(F57:F72)","v":0}]
[]
["EXÁMENES DE DEPOSICIONES, EXUDADOS, SECRECIONES Y OTROS LÍQUIDOS"]
["0308004","Hemorragias ocultas, (bencidina, guayaco o test de Weber y similares), cualquier método, c/muestra",{"$f":"SUM(D76:E76)","v":0}]
["0308005","Leucocitos fecales",0]
["TOTAL",null,{"$f":"SUM(C76:C77)","v":0},{"$f":"SUM(D76:D77)","v":0},{"$f":"SUM(E76:E77)","v":0},{"$f":"SUM(F76:F77)","v":0}]
[]
["EXÁMENES DE ORINA"]
["0309010","Creatinina cuantitativa en orina",{"$f":"SUM(D81:E81)","v":0}]
["0309013","Microalbuminuria cuantitativa",0]
["0309014","Gonadotrofina coriónica, sub-unidad beta en orina (test rápido)",0]
["0309020","Nitrógeno ureico o urea en orina (cuantitativo)",0]
["0309022","Orina completa, (incluye cód. 03-09-023 y 03-09-024)",0]
["0309023","Orina, físicoquímico (aspecto, color, densidad, pH, proteínas, glucosa, cuerpos cetónicos, urobilinógeno, bilirrubina, hemoglobina y nitritos) todos o cada uno de los parámetros (proc. aut.)",0]
["0309024","Sedimento de orina (proc. aut.)",0]
["TOTAL",null,{"$f":"SUM(C81:C87)","v":0},{"$f":"SUM(D81:D87)","v":0},{"$f":"SUM(E81:E87)","v":0},{"$f":"SUM(F81:F87)","v":0}]
["TOTAL EXÁMENES",null,{"$f":"+C20+C43+C49+C54+C73+C78+C88","v":0},{"$f":"+D20+D43+D49+D54+D73+D78+D88","v":0},{"$f":"+E20+E43+E49+E54+E73+E78+E88","v":0},{"$f":"+F20+F43+F49+F54+F73+F78+F88","v":0}]
[]
["EXÁMENES RADIOLÓGICOS"]
["0401004","Radiografía de tórax, proyección complementaria (oblicuas, selectivas u otras)",{"$f":"SUM(D92:E92)","v":0}]
["0401008","Radiografía de tórax  frontal o lateral con equipo móvil fuera del departamento de rayos.",0]
["0401009","Radiografía de tórax simple frontal o lateral ",0]
["0401070","Radiografía de tórax frontal y lateral",0]
["0401010","Mamografía bilateral",0]
["0401110","Mamografía unilateral",0]
["0401130","Mamografía proyección complementaria  (axilar u otras)",0]
["0401042","Radiografía de columna cervical o atlas-axis (frontal y lateral)",0]
["0401043","Radiografía de columna cervical (frontal, lateral y oblicuas)",0]
["0401044","Radiografía de columna cervical  flexión y  extensión (Dinámicas)",0]
["0401045","Radiografía de columna dorsal o dorsolumbar localizada, parrilla costal adultos (frontal y lateral).",0]
["0401046","Radiografía columna lumbar o lumbosacra   ",0]
["0401047","Radiografía columna lumbar o lumbosacra  flexión y  extensión (Dinámicas)",0]
["0401048","Radiografía columna lumbar o lumbosacra, oblicuas adicionales ",0]
["0401049","Radiografía de columna total, panorámica con folio graduado  frontal o lateral",0]
["0401051","Radiografía de pelvis, cadera o coxofemoral",0]
["0401151","Radiografía de pelvis, cadera o coxofemoral de RN, lactante o niño menor de 6 años.",0]
["0401052","Radiografía de pelvis, cadera o coxofemoral, proyecciones especiales; (rotación interna, abducción, lateral, Lawenstein u otras)",0]
["0401053","Radiografía de Sacrocoxis o articulaciones sacroilíacas.",0]
["0401054","Radiografía de brazo, antebrazo, codo, muñeca, mano, dedos, pie  (frontal y lateral)",0]
["0401055","Radiografía de clavícula.",0]
["0401060","Radiografía de hombro, fémur, rodilla, pierna, costilla o esternón Frontal y Lateral",0]
["0404002","Ecografía obstétrica",{"$f":"SUM(D114:E114)","v":0}]
["0404005","Ecografía transvaginal o transrectal",0]
["0404006","Ecografía ginecológica, pelviana femenina u obstétrica con estudio fetal",0]
["0404007","Ecografía transvaginal para seguimiento de ovulación, procedimiento completo (6-8 sesiones )",0]
["0404008","Ecografía para seguimiento de ovulación, procedimiento completo (6 a 8 sesiones)",0]
[]
["SECCIÓN B: PROCEDIMIENTOS E INTERVENCIONES QUIRÚRGICAS DE APOYO CLÍNICO Y TERAPÉUTICO"]
["CÓDIGOS","PROCEDIMIENTOS","Total","SAPU/SAR/SUR","Resto Establecimientos APS","Compra de Servicios"]
[]
["OTORRINOLARINGOLOGÍA"]
[1301025,"Taponamiento nasal anterior (proc. aut.)",{"$f":"SUM(D124:E124)","v":0}]
[1301026,"Taponamiento nasal posterior",{"$f":"SUM(D125:E125)","v":0}]
[1301029,"Cuerpo extraño en fosas nasales, extracción de: - En adultos        ",0]
[1301030,"Cuerpo extraño en fosas nasales, extracción de: - En niños",0]
["TOTAL",null,{"$f":"SUM(C124:C127)","v":0},{"$f":"SUM(D124:D127)","v":0},{"$f":"SUM(E124:E127)","v":0}]
[]
["DERMATOLOGÍA, TEGUMENTOS E INTERVENCIONES QUIRÚRGICAS MENORES"]
[1601110,"Curetaje de lesiones virales y similares hasta 10 lesiones por sesión                 ",{"$f":"SUM(D131:E131)","v":0}]
[1602203,"Resto del cuerpo hasta 3 lesiones: extirpación, reparación o biopsia, total o parcial, de lesiones benignas cutáneas por excisión                                                                       ",0]
[1602206,"Extirpación de lesiones benignas por sec tangencial, curetaje, y/o fulguración hasta 15 lesiones ",0]
[1602221,"Herida cortante o contusa complicada, reparación y sutura (más de 5 cm)",0]
[1602222,"Herida cortante o contusa NO complicada, reparación y sutura (una o múltiples de más de 5 cms de largo total que comprometa solo piel)                                             ",0]
[1602223,"Cabeza, cuello, genitales: extirpación de lesión benigna subepidérmica, incluye tumor sólido, quiste epidérmico y lipoma por lesión ",0]
[1602224,"Resto del cuerpo: extirpación de lesión benigna subepidérmica, incluye tumor sólido, quiste epidérmico y lipoma por lesión ",0]
[1602225,"Vaciamiento y curetaje quirúrgico de lesiones quística o abscesos                              ",0]
[1602231,"Onisectomía total o parcial simple                                                                                      ",0]
["TOTAL",null,{"$f":"SUM(C131:C139)","v":0},{"$f":"SUM(D131:D139)","v":0},0,0]
[]
["CARDIOLOGÍA"]
["1701001","E.C.G. de reposo (incluye mínimo 12 derivaciones y 4 complejos por derivación)",{"$f":"SUM(D143:E143)","v":0}]
["1701009","Monitoreo continuo de presión arterial (Holter)",{"$f":"SUM(D144:E144)","v":0}]
[null,"Monitoreo Ambulatorio de Presión Arterial (procedimiento de 3 evaluaciones de presión arterial finalizado)",{"$f":"SUM(D145:E145)","v":0}]
[null,"Cartridge para Troponina",{"$f":"SUM(D146:E146)","v":0}]
[null,"Cartridge Multiple",{"$f":"SUM(D147:E147)","v":0}]
["TOTAL",null,{"$f":"SUM(C143:C147)","v":0},{"$f":"SUM(D143:D147)","v":0},{"$f":"SUM(E143:E147)","v":0},{"$f":"SUM(F143:F147)","v":0}]
[]
["NEUMOLOGÍA"]
[1707001,"Espirometría Basal                                                                                       ",{"$f":"SUM(D151:E151)","v":0}]
[1707002,"Espirometria basal y con broncodilatador                                                         ",{"$f":"SUM(D152:E152)","v":0}]
[1707004,"Test de provocacion con ejercicio                                                                      ",0]
[1707030,"Aerosolterapia (Nebulización)    ",0]
["0106006","Oxigenoterapia domiciliaria (pacientes oxígeno dependientes)",{"$f":"SUM(D155:E155)","v":0}]
["0106020","Administración oxigeno",{"$f":"SUM(D156:E156)","v":0}]
["0106021","Aspiración secreciones",{"$f":"SUM(D157:E157)","v":0}]
["TOTAL",null,{"$f":"SUM(C151:C157)","v":0},{"$f":"SUM(D151:D157)","v":0},0,0]
[]
["GASTROENTEROLOGÍA"]
[null,"Instalación / retiro de sonda nasogástrica",{"$f":"SUM(D161:E161)","v":0}]
["0106009","Lavado gástrico",{"$f":"SUM(D162:E162)","v":0}]
[1801042,"Vaciamiento manual de fecaloma                                                                   ",{"$f":"SUM(D163:E163)","v":0}]
["TOTAL",null,{"$f":"SUM(C161:C163)","v":0},{"$f":"SUM(D161:D163)","v":0},{"$f":"SUM(E161:E163)","v":0}]
[]
["UROLOGÍA"]
[null,"Instalación / retiro de sonda urinaria",{"$f":"SUM(D167:E167)","v":0}]
[1901022,"Vac. Vesical por sonda uretral, (proc. Aut.)                                                    ",{"$f":"SUM(D168:E168)","v":0}]
["TOTAL",null,{"$f":"SUM(C167:C168)","v":0},{"$f":"SUM(D167:D168)","v":0},{"$f":"SUM(E167:E168)","v":0}]
[]
["GINECOLOGÍA"]
[null,"Inserción Implante Anticonceptivo",{"$f":"SUM(D172:E172)","v":0}]
[null,"Remoción Implante Anticonceptivo",{"$f":"SUM(D173:E173)","v":0}]
[2001015,"Colocación o extracción de dispositivo intrauterino (no incluye el valor del dispositivo)                    ",{"$f":"SUM(D174:E174)","v":0}]
[null,"Toma de muestra de PAP ",{"$f":"SUM(D175:E175)","v":0}]
[null,"Toma de muestra de PAP (PRAPS)",0]
["TOTAL",null,{"$f":"SUM(C172:C176)","v":0},{"$f":"SUM(D172:D176)","v":0},0]
[]
["ORTOPEDIA Y TRAUMATOLOGÍA"]
[2101001,"Infiltración local medicamentos (bursas, tendones, yuxtaarticulares y/o intraarticulares",{"$f":"SUM(D180:E180)","v":0}]
[2105004,"Rodillera, bota larga o corta de yeso",{"$f":"SUM(D181:E181)","v":0}]
[2105005,"Velpeau",0]
[2105006,"Yeso antebraquial c/s férula digital",0]
[2105007,"Yeso braquicarpiano",0]
[2107003,"Luxaciones de articulaciones menores (el resto)",0]
["TOTAL",null,{"$f":"SUM(C180:C185)","v":0},{"$f":"SUM(D180:D185)","v":0}]
[]
["MISCELÁNEOS"]
[null,"Hemoglocotest instantáneo ",{"$f":"SUM(D189:E189)","v":0}]
[null,"Entrega de Glucómetro",0]
["0106002","Curación simple ambulatoria",0]
[null,"Curación Avanzada",0]
[null,"Curación Avanzada Pie Diabético",0]
[null,"Curación Avanzada Úlcera Venosa",0]
[null,"Procedimientos de podología",{"$f":"SUM(D195:E195)","v":0}]
["0106007","Extracción cuerpo extraño ojo",0]
["0106008","Extracción cuerpo extraño otro lugar",0]
["0106010","Lavado oído",0]
["0106011","Técnicas reanimación cardiopulmonar básico",0]
["0106012","Técnicas reanimación cardiopulmonar avanzado",0]
["0106013","Aseo ocular",0]
["0106014","Administración inyecciones",0]
["0106015","Administración fleboclisis",0]
["0307011","Toma de muestra de sangre venosa en adultos",0]
["0307012","Toma de muestra de sangre venosa en niños y lactantes",0]
["TOTAL",null,{"$f":"SUM(C189:C205)","v":0},{"$f":"SUM(D189:D205)","v":0},0,0]

{"sheet":"Control","index":3,"n_rows":78,"n_cols":4,"rows_kept":78,"cut":false,"hidden":false,"merged":[]}
[]
[null,"HOJA","SECCION","Nº Errores"]
[null,"NOMBRE","Código comuna",{"$f":"+NOMBRE!AG2","v":1}]
[null,"NOMBRE","Código establecimiento/estrategia",{"$f":"+NOMBRE!AG3","v":1}]
[null,"NOMBRE","Código Mes",{"$f":"+NOMBRE!AG6","v":1}]
[null,"BM18","TODAS LAS SECCIONES",{"$f":"IF('BM18'!A96=0,\"SIN DATOS\",\"\")","v":"SIN DATOS"}]
[null,null,"TOTAL ERRORES",{"$f":"SUM(D3:D6)","v":3}]
[]
[]
[]
[null,"¿Nombre vacío?"]
[null,{"$f":"ISBLANK(NOMBRE!B2)","v":true}]
[]
[]
[]
[]
[]
[]
[]
[]
[]
[]
[]
[]
[]
[]
[]
[]
[]
[]
[]
[]
[]
[]
[]
[]
[]
[]
[]
[]
[]
[]
[]
[]
[]
[]
[]
[]
[]
[]
[]
[]
[]
[]
[]
[]
[]
[]
[]
[]
[]
[]
[]
[]
[]
[]
[]
[]
[]
[]
[]
[]
[]
[]
[]
[]
[]
[null,null,null,{"$f":"SUM(D3:D5)","v":3}]

{"sheet":"MACROS","index":4,"n_rows":7,"n_cols":2,"rows_kept":7,"cut":false,"hidden":false,"merged":[[0,0,0,13],[6,1,7,7]]}
["Macros"]
[{"$f":"CONCATENATE(\"ESTABLECIMIENTO: \",NOMBRE!B3,\" - \",NOMBRE!C3,NOMBRE!D3,NOMBRE!E3,NOMBRE!F3,NOMBRE!G3,NOMBRE!H3,NOMBRE!I3,\" \n  \",\" / MES:  \",NOMBRE!B6,\"  / AÑO:  \",NOMBRE!B7)","v":"ESTABLECIMIENTO:  - Falta Cód. Est. \n   / MES:    / AÑO:  2026"}]
[]
[]
[null,"CREA UNA COPIA  DEL ARCHIVO\n(TRANFORMA HOJAS A VALORES)"]
[null,"Contraseña para copia del archivo :DEIS"]
[null,{"$f":"IF(Control!D7>0,\"ANTES DE EJECUTAR LA MACRO REVISE LA HOJA CONTROL, EXISTEN ERRORES\",\"\")","v":"ANTES DE EJECUTAR LA MACRO REVISE LA HOJA CONTROL, EXISTEN ERRORES"}]